bitfinex-derivatives/quotes_ETHF0:USTF0_20250420
["timestamp","ask_amount","ask_price","bid_price","bid_amount"]
[1745137454281,2.67306313,1595.5,1595.4,10.1734]
[1745137454580,2.67306313,1595.6,1595.5,1.25362]
[1745137454780,2.67306313,1595.6,1595.5,11.20042]
[1745137454970,2.67306313,1595.6,1595.5,16.20042]
[1745137455170,2.67306313,1595.6,1595.5,18.42842]
[1745137456080,3.92660313,1595.6,1595.5,17.1748]
[1745137456276,3.92660313,1595.6,1595.5,12.1748]
[1745137456980,5.55500313,1595.6,1595.5,12.1748]
[1745137457583,6.39620313,1595.6,1595.5,11.3131]
[1745137457983,3.72314,1595.6,1595.5,11.3131]
[1745137458582,3.72314,1595.6,1595.5,9.6728]
[1745137462179,3.72314,1595.6,1595.5,6.465]
[1745137463686,1.25354,1595.6,1595.5,9.6728]
[1745137463886,3.70784,1595.6,1595.5,9.6728]
[1745137464092,3.70784,1595.6,1595.5,11.4164]
[1745137465583,10.51218691,1595.7,1595.5,11.4164]
[1745137465984,1.25354,1595.6,1595.5,9.6728]
[1745137470490,3.79504,1595.6,1595.5,9.6728]
[1745137473392,3.79504,1595.6,1595.5,6.465]
[1745137481998,3.79504,1595.6,1595.5,2.228]
[1745137484401,8.79504,1595.6,1595.5,2.228]
[1745137487696,19.1439571,1595.6,1595.5,2.228]
[1745137489397,22.3517571,1595.6,1595.5,2.228]
[1745137491700,19.1439571,1595.6,1595.5,2.228]
[1745137492098,17.3517571,1595.6,1595.5,2.228]
[1745137492904,14.1439571,1595.6,1595.5,2.228]
[1745137493207,17.3517571,1595.6,1595.5,2.228]
[1745137496205,7.00284,1595.6,1595.5,2.228]
[1745137496406,15.37456448,1595.6,1595.5,2.228]
[1745137496897,1.25378,1595.3,1595.2,3.2078]
[1745137497101,1.25394,1595.1,1595.0,0.8044]
[1745137497302,1.25394,1595.1,1595.0,3.3823]
[1745137498209,1.25394,1595.1,1595.0,5.6103]
[1745137505011,5.43747541,1595.2,1595.0,5.6103]
[1745137505202,5.43747541,1595.2,1595.1,1.6115]
[1745137506706,4.18355541,1595.2,1595.1,1.6115]
[1745137506905,4.18355541,1595.2,1595.1,6.07324]
[1745137507411,1.25386,1595.2,1595.1,6.07324]
[1745137507612,1.25386,1595.2,1595.1,4.8193]
[1745137509411,1.25386,1595.2,1595.1,6.07324]
[1745137510211,1.25386,1595.2,1595.1,4.8193]
[1745137510411,1.25386,1595.2,1595.1,6.07324]
[1745137511010,1.25386,1595.2,1595.1,4.8193]
[1745137511211,1.25386,1595.2,1595.1,1.6115]
[1745137511411,3.74026,1595.2,1595.1,1.6115]
[1745137518216,1.25394,1595.1,1595.0,2.228]
[1745137518422,3.77674,1595.1,1595.0,2.228]
[1745137522423,7.96029541,1595.1,1595.0,2.228]
[1745137528630,14.2370415,1595.1,1595.0,2.228]
[1745137529121,1.25417,1594.8,1594.7,9.1118]
[1745137529521,1.25417,1594.8,1594.7,10.804]
[1745137530123,2.07027,1594.8,1594.7,13.032]
[1745137531233,2.07027,1594.8,1594.7,9.6608]
[1745137531444,2.92657,1594.8,1594.7,6.453]
[1745137531645,7.11012541,1594.8,1594.7,6.453]
[1745137531844,6.25382541,1594.8,1594.7,8.9573]
[1745137534649,7.92912541,1594.8,1594.7,8.9573]
[1745137536449,3.74557,1594.8,1594.7,8.9573]
[1745137541754,2.92947,1594.8,1594.7,8.9573]
[1745137542052,1.25417,1594.8,1594.7,8.9573]
[1745137544754,5.43770541,1594.9,1594.7,10.21154]
[1745137545056,5.43770541,1594.9,1594.8,1.6877]
[1745137545255,5.43770541,1594.9,1594.8,2.4875]
[1745137547456,1.25415,1594.9,1594.8,2.4875]
[1745137554964,2.99645,1594.9,1594.8,2.4875]
[1745137555149,2.99639,1594.9,1594.8,2.4875]
[1745137556759,5.43764541,1594.9,1594.8,2.4875]
[1745137559666,5.43764541,1594.9,1594.8,1.6877]
[1745137559860,1.25417,1594.8,1594.7,7.3082]
[1745137560064,2.97417,1594.8,1594.7,8.9944]
[1745137560261,2.97417,1594.8,1594.7,7.3082]
[1745137560455,3.83257,1594.8,1594.7,7.3082]
[1745137560656,3.83257,1594.8,1594.7,6.453]
[1745137563870,8.01612541,1594.8,1594.7,6.453]
[1745137565364,7.15772541,1594.8,1594.7,8.1041]
[1745137565564,4.18355541,1594.8,1594.7,8.9264]
[1745137566066,5.43772541,1594.8,1594.7,8.9264]
[1745137566470,4.18355541,1594.8,1594.7,8.9264]
[1745137566668,5.43772541,1594.8,1594.7,8.9264]
[1745137567271,7.53091609,1594.8,1594.7,8.9264]
[1745137567967,6.27674609,1594.8,1594.7,10.18065]
[1745137568164,6.27674609,1594.8,1594.7,8.9264]
[1745137568359,7.53091609,1594.8,1594.7,10.18065]
[1745137568770,6.27674609,1594.8,1594.7,15.18065]
[1745137569072,6.27674609,1594.8,1594.7,10.18065]
[1745137570873,5.44681401,1594.9,1594.7,10.18065]
[1745137571068,5.44681401,1594.9,1594.8,2.6145]
[1745137572777,7.17231401,1594.9,1594.8,2.6145]
[1745137573177,1.25417,1594.8,1594.7,7.2753]
[1745137573380,3.77527,1594.8,1594.7,6.453]
[1745137573583,3.77527,1594.8,1594.4,11.55113549]
[1745137573584,1.25441,1594.5,1594.4,11.55113549]
[1745137574081,1.25441,1594.5,1594.4,15.44673549]
[1745137574666,2.12171,1594.5,1594.4,15.44673549]
[1745137575779,2.12171,1594.5,1594.4,7.1034]
[1745137576171,3.84401,1594.5,1594.4,7.1034]
[1745137584090,3.84401,1594.5,1594.4,5.4358]
[1745137585391,3.84401,1594.5,1594.4,7.1535]
[1745137591386,1.25441,1594.5,1594.4,7.1535]
[1745137593193,2.89421,1594.5,1594.4,7.1535]
[1745137595398,2.89421,1594.5,1594.4,5.4358]
[1745137595990,2.89421,1594.5,1594.4,2.228]
[1745137601705,11.10201,1594.5,1594.4,1e-05]
[1745137603507,11.59067339,1594.5,1594.4,1e-05]
[1745137604503,11.10201,1594.5,1594.4,1e-05]
[1745137604709,6.10201,1594.5,1594.4,1e-05]
[1745137605207,6.10201,1594.5,1594.4,1.73841]
[1745137605809,14.47373448,1594.5,1594.4,1.73841]
[1745137609910,14.47373448,1594.5,1594.4,1e-05]
[1745137610309,6.10201,1594.5,1594.4,1e-05]
[1745137612911,11.10201,1594.5,1594.4,1e-05]
[1745137613615,6.10201,1594.5,1594.4,1e-05]
[1745137614515,10.28675744,1594.5,1594.4,1e-05]
[1745137615217,15.28675744,1594.5,1594.4,1e-05]
[1745137616119,1.25456,1594.3,1594.2,0.59371]
[1745137616318,1.25464,1594.2,1594.1,4.217]
[1745137617415,2.12434,1594.2,1594.1,4.217]
[1745137617925,1.25472,1594.1,1594.0,4.7493]
[1745137618113,3.71312,1594.1,1594.0,4.7493]
[1745137619119,3.13715,1594.0,1593.7,3.2078]
[1745137619323,1.25496,1593.8,1593.7,10.77148313]
[1745137619629,1.25519,1593.5,1593.4,20.85833872]
[1745137619816,1.25519,1593.5,1593.4,21.69593872]
[1745137620123,1.25519,1593.5,1593.4,28.92393872]
[1745137620422,1.25519,1593.5,1593.4,23.92393872]
[1745137621019,1.25519,1593.5,1593.4,26.44123872]
[1745137621521,1.25519,1593.5,1593.4,31.44123872]
[1745137621720,1.25515,1593.6,1593.4,31.44123872]
[1745137622022,1.25515,1593.6,1593.5,4.8532]
[1745137623121,1.25515,1593.6,1593.5,7.0812]
[1745137623721,5.43827842,1593.6,1593.5,7.0812]
[1745137626224,1.25515,1593.6,1593.5,7.0812]
[1745137628717,1.25515,1593.6,1593.5,5.4358]
[1745137628925,1.25515,1593.6,1593.5,2.228]
[1745137629314,8.2078,1593.6,1593.1,5.0708]
[1745137629520,1.25543,1593.2,1593.1,5.0708]
[1745137630616,1.25543,1593.2,1593.1,4.215]
[1745137631022,1.25551,1593.1,1593.0,2.228]
[1745137631728,1.25551,1593.1,1593.0,6.444]
[1745137632029,1.6926,1593.3,1593.0,8.8872]
[1745137632322,1.25551,1593.1,1593.0,7.2888]
[1745137633119,3.2078,1593.4,1593.0,12.2888]
[1745137633314,3.2078,1593.4,1593.1,3.2078]
[1745137633620,1.25542,1593.3,1593.1,3.2078]
[1745137633819,4.46313,1593.4,1593.1,4.4633]
[1745137634018,1.25523,1593.5,1593.3,3.2078]
[1745137634215,1.25523,1593.5,1593.4,5.0798]
[1745137634622,1.2551,1593.7,1593.4,11.33503]
[1745137634821,11.71292105,1593.7,1593.5,3.2078]
[1745137635021,10.45782105,1593.7,1593.6,1.25512]
[1745137635426,10.45782105,1593.7,1593.6,6.25512]
[1745137638036,10.45782105,1593.7,1593.6,5.0]
[1745137638222,10.45782105,1593.7,1593.5,6.69095]
[1745137638527,10.45782105,1593.7,1593.6,1.25512]
[1745137638729,1.25496,1593.8,1593.6,1.25512]
[1745137638932,1.25496,1593.8,1593.7,7.4238]
[1745137639130,1.25496,1593.8,1593.7,10.4505]
[1745137640526,1.25494,1593.9,1593.7,10.4505]
[1745137640735,6.34449,1594.2,1593.7,10.4505]
[1745137640933,1.25496,1593.8,1593.7,10.4505]
[1745137641134,1.25496,1593.8,1593.7,10.44128313]
[1745137641837,1.25494,1593.9,1593.7,10.44128313]
[1745137642339,1.6032,1594.1,1593.7,11.69629313]
[1745137642636,1.6032,1594.1,1593.7,10.44128313]
[1745137642637,1.25494,1593.9,1593.7,10.44128313]
[1745137642830,1.6032,1594.1,1593.7,10.44128313]
[1745137642831,1.25496,1593.8,1593.7,10.44128313]
[1745137643229,1.25496,1593.8,1593.7,9.64258313]
[1745137643535,1.25496,1593.8,1593.7,5.4358]
[1745137644035,2.07686,1593.8,1593.7,5.4358]
[1745137644939,2.07686,1593.8,1593.7,2.228]
[1745137648536,1.25496,1593.8,1593.7,2.228]
[1745137656244,1.25496,1593.8,1593.7,6.2576]
[1745137657140,1.25496,1593.8,1593.7,7.1123]
[1745137659844,1.25496,1593.8,1593.7,5.5977]
[1745137660051,1.25496,1593.8,1593.7,8.8055]
[1745137660954,7.39092842,1594.1,1593.7,13.8055]
[1745137661141,1.25489,1593.9,1593.8,5.9062]
[1745137661342,9.13232842,1594.1,1593.8,5.9062]
[1745137661541,1.24558313,1594.0,1593.9,1.6671]
[1745137662037,1.24558313,1594.0,1593.9,3.8951]
[1745137662651,1.24558313,1594.0,1593.9,7.1029]
[1745137664366,1.24558313,1594.0,1593.9,8.35778]
[1745137664658,1.2548,1594.0,1593.9,7.1029]
[1745137666155,1.2548,1594.0,1593.9,2.228]
[1745137667259,1.2548,1594.0,1593.9,5.4358]
[1745137667562,1.25478,1594.1,1593.9,6.2369]
[1745137667762,1.25478,1594.1,1594.0,5.9157]
[1745137668764,1.25478,1594.1,1594.0,4.212]
[1745137668958,2.92398,1594.1,1594.0,4.212]
[1745137669154,2.92398,1594.1,1594.0,2.228]
[1745137673960,1.25478,1594.1,1594.0,3.9445]
[1745137674968,2.92708,1594.1,1594.0,3.9445]
[1745137676362,2.92708,1594.1,1594.0,4.7709]
[1745137676669,1.25478,1594.1,1594.0,4.7709]
[1745137683475,2.97338,1594.1,1594.0,2.228]
[1745137683965,2.97338,1594.1,1594.0,3.8229]
[1745137687174,2.97338,1594.1,1594.0,2.228]
[1745137688673,11.18118,1594.1,1594.0,2.228]
[1745137689076,11.18118,1594.1,1594.0,0.96099]
[1745137691376,15.36430842,1594.1,1594.0,0.96099]
[1745137691585,15.36430842,1594.1,1594.0,1e-05]
[1745137695086,21.5300971,1594.1,1594.0,1e-05]
[1745137698279,1.25504,1593.7,1593.6,5.9598]
[1745137698474,1.25504,1593.7,1593.6,5.95058313]
[1745137698982,2.95794,1593.7,1593.6,5.95058313]
[1745137701283,2.95794,1593.7,1593.6,1.7498]
[1745137702192,5.44133739,1593.7,1593.6,1.7498]
[1745137704590,5.44133739,1593.7,1593.6,6.7498]
[1745137705991,5.44133739,1593.7,1593.6,1.7498]
[1745137706494,1.25504,1593.7,1593.6,1.7498]
[1745137707391,1.25504,1593.7,1593.6,4.9576]
[1745137708792,1.25504,1593.7,1593.6,11.21272]
[1745137708988,1.25501,1593.8,1593.6,9.9576]
[1745137709189,1.25501,1593.8,1593.7,6.8133]
[1745137709991,1.25501,1593.8,1593.7,7.6441]
[1745137710193,1.25501,1593.8,1593.7,9.8721]
[1745137714995,2.08041,1593.8,1593.7,9.8721]
[1745137715584,2.08041,1593.8,1593.7,9.0413]
[1745137716188,1.25501,1593.8,1593.7,9.9085]
[1745137724503,1.25501,1593.8,1593.7,6.439]
[1745137724894,1.25501,1593.8,1593.7,8.9019]
[1745137725203,2.99211,1593.8,1593.7,3.35925]
[1745137725403,1.25504,1593.7,1593.6,3.2078]
[1745137725599,3.80234,1593.7,1593.6,3.2078]
[1745137728707,7.98863739,1593.7,1593.6,3.2078]
[1745137729512,5.44133739,1593.7,1593.6,3.2078]
[1745137729805,5.44133739,1593.7,1593.6,4.9739]
[1745137732905,7.93353739,1593.7,1593.6,4.9739]
[1745137733408,3.74724,1593.7,1593.6,4.9739]
[1745137733600,1.25504,1593.7,1593.6,4.9739]
[1745137734520,2.13754,1593.7,1593.6,4.9739]
[1745137737608,3.75844,1593.7,1593.6,4.9739]
[1745137739512,3.75844,1593.7,1593.6,1.7661]
[1745137739709,3.75844,1593.7,1593.6,4.9739]
[1745137744513,3.75844,1593.7,1593.6,3.2078]
[1745137746122,1.25512,1593.6,1593.5,9.6438]
[1745137746306,3.76602,1593.6,1593.5,9.6438]
[1745137747017,3.76602,1593.6,1593.5,6.436]
[1745137754133,3.76602,1593.6,1593.5,8.1601]
[1745137754530,7.95231739,1593.6,1593.5,8.1601]
[1745137756936,5.44141739,1593.6,1593.5,8.1601]
[1745137757131,5.44141739,1593.6,1593.5,9.8134]
[1745137759644,7.11901739,1593.6,1593.5,9.8134]
[1745137761042,2.93272,1593.6,1593.5,9.8134]
[1745137764948,1.25512,1593.6,1593.5,9.8134]
[1745137768942,4.18629739,1593.8,1593.5,9.8134]
[1745137769247,5.44125739,1593.8,1593.7,3.2078]
[1745137769647,5.44125739,1593.8,1593.7,4.0696]
[1745137770149,5.44125739,1593.8,1593.7,6.2976]
[1745137770445,5.44125739,1593.8,1593.7,7.9809]
[1745137772250,1.25496,1593.8,1593.7,7.9809]
[1745137773652,1.25496,1593.8,1593.7,9.23594]
[1745137773944,16.32324348,1594.0,1593.7,9.23594]
[1745137774149,11.72058348,1594.0,1593.9,3.2078]
[1745137774348,11.71136661,1594.0,1593.9,3.2078]
[1745137774546,11.71136661,1594.0,1593.9,5.7142]
[1745137775147,10.45652661,1594.0,1593.9,9.19708]
[1745137776343,1.25478,1594.1,1593.9,9.19708]
[1745137776548,1.25478,1594.1,1594.0,1.6696]
[1745137776744,7.53413609,1594.2,1594.1,1.25472]
[1745137777039,7.53413609,1594.2,1594.1,9.1018]
[1745137777040,7.53408609,1594.2,1594.1,9.1018]
[1745137777644,7.53408609,1594.2,1594.1,10.8714]
[1745137780255,7.53408609,1594.2,1594.1,12.12612]
[1745137780463,7.53408609,1594.2,1594.1,10.8714]
[1745137781056,1.25464,1594.2,1594.1,10.8714]
[1745137782054,1.25464,1594.2,1594.1,12.12612]
[1745137789153,1.25464,1594.2,1594.1,10.8714]
[1745137789460,2.92134,1594.2,1594.1,10.8714]
[1745137789760,1.6667,1594.2,1594.1,12.12612]
[1745137790060,0.8348,1594.3,1594.2,1.25464]
[1745137790256,2.92124,1594.4,1594.2,2.90804]
[1745137790453,2.92124,1594.4,1594.3,3.2078]
[1745137790754,1.6667,1594.4,1594.3,6.92906]
[1745137791056,0.8154,1594.5,1594.4,1.25449]
[1745137791262,2.92109,1594.6,1594.4,7.90719]
[1745137791652,2.92109,1594.6,1594.5,1.6534]
[1745137792158,2.92109,1594.6,1594.5,3.8814]
[1745137792561,1.6667,1594.6,1594.5,7.0892]
[1745137792856,2.92103,1594.6,1594.5,7.0892]
[1745137793861,2.92103,1594.6,1594.5,5.4358]
[1745137801066,2.92103,1594.6,1594.5,7.0752]
[1745137803267,2.92103,1594.6,1594.5,5.4358]
[1745137807571,2.92103,1594.6,1594.5,7.1246]
[1745137809170,2.92103,1594.6,1594.5,5.4358]
[1745137810174,2.92103,1594.6,1594.5,2.228]
[1745137810973,7.92103,1594.6,1594.5,2.228]
[1745137813576,2.92103,1594.6,1594.5,2.228]
[1745137815986,7.92103,1594.6,1594.5,0.8918]
[1745137816176,1.25456,1594.3,1594.2,4.198]
[1745137816881,3.81656,1594.3,1594.2,4.198]
[1745137817082,3.81656,1594.3,1594.2,6.426]
[1745137818579,3.81656,1594.3,1594.2,2.228]
[1745137822686,1.25456,1594.3,1594.2,7.9421]
[1745137823079,7.53395609,1594.4,1594.2,14.19674]
[1745137823385,7.53393609,1594.4,1594.3,5.8868]
[1745137828780,1.25449,1594.4,1594.3,5.8868]
[1745137832189,1.25456,1594.3,1594.2,3.0465]
[1745137832393,2.13256,1594.3,1594.2,6.427]
[1745137832892,3.74886,1594.3,1594.2,8.0697]
[1745137835496,3.74886,1594.3,1594.2,6.427]
[1745137835790,8.74886,1594.3,1594.2,0.9673]
[1745137835993,8.74886,1594.3,1594.2,1e-05]
[1745137836196,1.2548,1594.0,1593.9,4.196]
[1745137836392,1.2548,1594.0,1593.9,5.8751]
[1745137837294,1.2548,1594.0,1593.9,8.1031]
[1745137838496,2.9007,1594.0,1593.9,8.1031]
[1745137845494,2.9007,1594.0,1593.9,6.424]
[1745137846891,3.4100894,1594.0,1593.9,2.228]
[1745137847096,11.1085,1594.0,1593.9,2.228]
[1745137848099,1.25496,1593.8,1593.7,4.196]
[1745137848291,1.25496,1593.8,1593.7,4.18678313]
[1745137848691,3.77206,1593.8,1593.7,4.18678313]
[1745137849097,3.77206,1593.8,1593.7,6.41478313]
[1745137849497,3.77206,1593.8,1593.7,8.08098313]
[1745137850001,3.77206,1593.8,1593.7,6.41478313]
[1745137852003,11.97986,1593.8,1593.7,2.228]
[1745137852795,11.97986,1593.8,1593.7,0.94165]
[1745137853198,1.25512,1593.6,1593.5,4.197]
[1745137854000,2.86592,1593.6,1593.5,4.197]
[1745137854192,2.86592,1593.6,1593.5,6.425]
[1745137854596,2.86592,1593.6,1593.5,2.228]
[1745137855004,7.86592,1593.6,1593.5,2.228]
[1745137855204,7.86592,1593.6,1593.0,11.55113549]
[1745137855205,1.25551,1593.1,1593.0,11.55113549]
[1745137855905,1.25551,1593.1,1593.0,13.17773549]
[1745137856208,9.46331,1593.1,1593.0,9.02992549]
[1745137856406,9.46331,1593.1,1593.0,6.53112549]
[1745137856707,6.13041,1593.1,1593.0,6.53112549]
[1745137857005,6.13041,1593.1,1593.0,2.228]
[1745137857200,1.25575,1592.8,1592.7,9.8112]
[1745137857402,1.25575,1592.8,1592.7,2.228]
[1745137858698,1.25575,1592.8,1592.7,3.8814]
[1745137860104,1.25561,1593.0,1592.7,10.13717]
[1745137860303,1.25554,1593.1,1592.9,3.2078]
[1745137860501,2.5181,1593.2,1593.0,1.6973]
[1745137860809,1.25551,1593.1,1593.0,1.6973]
[1745137861004,1.25551,1593.1,1593.0,5.8953]
[1745137861196,1.25551,1593.1,1593.0,8.1233]
[1745137863212,4.46331,1593.1,1593.0,2.228]
[1745137863510,10.33171,1593.1,1593.0,2.228]
[1745137864112,1.25567,1592.9,1592.8,4.198]
[1745137864506,1.25575,1592.8,1592.7,3.2078]
[1745137865213,1.25575,1592.8,1592.7,7.0452]
[1745137866612,1.25575,1592.8,1592.7,3.8374]
[1745137869518,1.25575,1592.8,1592.7,2.228]
[1745137869914,2.95525,1592.8,1592.7,3.9402]
[1745137870609,2.95525,1592.8,1592.7,2.228]
[1745137872814,7.95525,1592.8,1591.9,3.2078]
[1745137873009,1.25638,1592.0,1591.9,3.2078]
[1745137873322,1.25638,1592.0,1591.9,5.4358]
[1745137873617,1.25636,1592.1,1591.9,5.4358]
[1745137873810,1.25636,1592.1,1592.0,0.8516]
[1745137874819,1.25636,1592.1,1592.0,5.0486]
[1745137875112,1.25636,1592.1,1592.0,7.2766]
[1745137875520,1.25628,1592.2,1592.0,7.2766]
[1745137875719,1.2563,1592.1,1592.0,7.2766]
[1745137877619,2.9765,1592.1,1592.0,2.228]
[1745137877822,7.9765,1592.1,1592.0,2.228]
[1745137878620,2.9765,1592.1,1592.0,2.228]
[1745137879521,1.2563,1592.1,1592.0,2.228]
[1745137880520,3.6656,1592.1,1592.0,2.228]
[1745137882227,8.6656,1592.1,1592.0,2.228]
[1745137883224,8.6656,1592.1,1592.0,0.74565]
[1745137883425,10.5501,1592.1,1591.6,5.0235]
[1745137883619,1.25661,1591.7,1591.6,5.0235]
[1745137885625,1.25669,1591.6,1591.5,5.4358]
[1745137885817,1.25669,1591.6,1591.5,7.133]
[1745137886922,1.25664,1591.7,1591.5,8.38972]
[1745137887424,1.25665,1591.7,1591.5,8.38973]
[1745137887924,1.25665,1591.7,1591.5,8.38971]
[1745137888124,1.25669,1591.6,1591.5,8.38971]
[1745137888327,1.25665,1591.7,1591.5,8.38971]
[1745137888823,2.5853,1591.9,1591.5,8.38971]
[1745137889028,1.25661,1591.7,1591.5,8.38971]
[1745137889320,1.25668,1591.7,1591.5,8.38971]
[1745137889523,1.25661,1591.7,1591.5,8.38971]
[1745137889926,1.7291,1591.8,1591.5,8.38971]
[1745137889927,1.25669,1591.6,1591.5,7.133]
[1745137890418,1.25667,1591.7,1591.5,8.38977]
[1745137891125,1.7291,1591.8,1591.5,8.38977]
[1745137891627,1.25665,1591.7,1591.5,8.38977]
[1745137891823,1.7291,1591.8,1591.5,8.38977]
[1745137892022,1.25665,1591.7,1591.5,8.38977]
[1745137892228,1.25669,1591.6,1591.5,7.133]
[1745137892531,1.25669,1591.6,1591.5,8.8734]
[1745137892730,1.25669,1591.7,1591.5,10.13017]
[1745137892930,1.25669,1591.7,1591.6,2.96819]
[1745137893127,1.2566,1591.8,1591.6,2.96819]
[1745137893330,3.2078,1592.3,1591.7,9.1183]
[1745137893631,1.25632,1592.1,1591.9,4.4642]
[1745137893931,1.25632,1592.1,1592.0,5.9105]
[1745137894133,1.25632,1592.1,1592.0,8.1385]
[1745137895234,2.86992,1592.1,1592.0,8.1385]
[1745137896035,7.86992,1592.1,1592.0,2.228]
[1745137896228,11.07772,1592.1,1592.0,2.228]
[1745137897134,1.25653,1591.8,1591.7,3.3498]
[1745137897328,1.25661,1591.7,1591.6,4.199]
[1745137898126,1.25685,1591.4,1591.3,7.4468]
[1745137898725,1.25685,1591.4,1591.3,9.1051]
[1745137899135,2.88223,1591.5,1591.3,9.1051]
[1745137899435,2.88223,1591.5,1591.4,2.4884]
[1745137899734,1.25683,1591.5,1591.4,2.4884]
[1745137900133,1.25683,1591.5,1591.4,4.7164]
[1745137900735,1.25675,1591.6,1591.4,4.7164]
[1745137900934,1.25675,1591.6,1591.5,2.5221]
[1745137901228,1.25666,1591.7,1591.5,7.9579]
[1745137901427,1.25666,1591.7,1591.6,5.8983]
[1745137905139,1.25658,1591.8,1591.6,12.15497]
[1745137905340,1.25658,1591.8,1591.7,5.8054]
[1745137906141,1.25658,1591.8,1591.7,8.0334]
[1745137906841,1.7404,1592.0,1591.7,9.29001]
[1745137906842,1.2565,1591.9,1591.7,9.29001]
[1745137907135,1.25644,1592.0,1591.8,3.88201]
[1745137907334,1.25644,1592.0,1591.9,9.1904]
[1745137907534,1.25633,1592.1,1591.9,10.44686]
[1745137907735,1.25633,1592.1,1592.0,2.5976]
[1745137908144,1.25633,1592.1,1592.0,4.8256]
[1745137908438,1.7404,1592.3,1592.0,6.08198]
[1745137908643,1.25622,1592.2,1592.1,5.6502]
[1745137918057,2.99659,1592.3,1592.1,6.9065]
[1745137918255,1.25619,1592.3,1592.2,5.9415]
[1745137919356,1.25619,1592.3,1592.2,8.1695]
[1745137919853,3.01922,1592.4,1592.2,9.42572]
[1745137920058,1.25612,1592.4,1592.3,4.8636]
[1745137920249,2.95832,1592.4,1592.3,4.8636]
[1745137920656,2.95832,1592.4,1592.3,5.7349]
[1745137920858,2.95832,1592.4,1592.3,0.8713]
[1745137921054,1.25614,1592.3,1592.2,8.1228]
[1745137921256,2.95834,1592.3,1592.2,8.1228]
[1745137923663,2.95834,1592.3,1592.2,3.8838]
[1745137923862,2.95834,1592.3,1592.2,6.467]
[1745137929167,2.95834,1592.3,1592.2,2.228]
[1745137929367,2.95834,1592.3,1592.2,6.432]
[1745137935066,6.16614,1592.3,1592.2,2.228]
[1745137935465,6.16614,1592.3,1592.2,0.71572]
[1745137936165,1.2563,1592.1,1592.0,4.204]
[1745137936569,2.90208,1592.2,1592.0,10.31637]
[1745137936766,2.90208,1592.2,1592.1,2.5042]
[1745137939969,1.25628,1592.2,1592.1,2.5042]
[1745137940675,2.94288,1592.2,1592.1,2.5042]
[1745137941681,1.2563,1592.1,1592.0,9.6398]
[1745137941872,2.9585,1592.1,1592.0,11.3659]
[1745137942682,1.2563,1592.1,1592.0,11.3659]
[1745137942880,1.25627,1592.2,1592.0,11.3659]
[1745137943081,1.25627,1592.2,1592.1,1.7261]
[1745137943583,4.13780708,1592.3,1592.1,6.7261]
[1745137943778,4.13780708,1592.3,1592.2,5.31692]
[1745137943974,4.13780708,1592.3,1592.2,12.89322]
[1745137944281,4.13780708,1592.3,1592.2,15.12122]
[1745137944973,2.61325317,1592.4,1592.3,1.25614]
[1745137945175,2.61325317,1592.4,1592.3,7.08554]
[1745137945377,2.61325317,1592.4,1592.3,12.08554]
[1745137946783,2.61325317,1592.4,1592.3,7.08554]
[1745137946985,2.61325317,1592.4,1592.3,5.8294]
[1745137947380,3.86931317,1592.4,1592.3,7.08554]
[1745137947879,2.61325317,1592.4,1592.3,7.08554]
[1745137950083,2.61325317,1592.4,1592.3,10.29334]
[1745137950789,2.61325317,1592.5,1592.4,1.25606]
[1745137951088,3.86923317,1592.5,1592.4,1.6343]
[1745137951499,3.86923317,1592.5,1592.4,2.89036]
[1745137951681,3.86923317,1592.5,1592.4,1.6343]
[1745137952181,3.86923317,1592.5,1592.4,3.8623]
[1745137952889,3.86923317,1592.5,1592.4,5.11836]
[1745137953189,2.61325317,1592.5,1592.4,5.11836]
[1745137953580,3.86923317,1592.5,1592.4,5.11836]
[1745137954688,1.25598,1592.5,1592.4,5.11836]
[1745137955090,1.25598,1592.5,1592.4,3.8623]
[1745137956788,6.25598,1592.5,1592.4,2.228]
[1745137957184,1.25606,1592.4,1592.3,3.2078]
[1745137957484,4.50926,1592.4,1592.3,3.2078]
[1745137957684,9.50926,1592.4,1592.3,3.2078]
[1745137958693,4.50926,1592.4,1592.3,3.2078]
[1745137959192,1.25614,1592.3,1592.2,6.431]
[1745137959490,2.86034,1592.3,1592.2,6.431]
[1745137967595,2.86034,1592.3,1592.2,8.0467]
[1745137967898,11.51261479,1592.5,1592.2,8.0467]
[1745137967899,8.37259479,1592.5,1592.2,8.0467]
[1745137968196,1.25613,1592.4,1592.3,6.5104]
[1745137977499,2.97584,1592.5,1592.3,7.76649]
[1745137977697,1.25597,1592.6,1592.4,1.7701]
[1745137977907,1.25597,1592.6,1592.5,4.198]
[1745137978199,1.25597,1592.6,1592.5,6.426]
[1745137978402,1.25597,1592.6,1592.5,8.1622]
[1745137990804,1.25597,1592.6,1592.5,6.426]
[1745137991003,1.25598,1592.5,1592.4,3.2078]
[1745137991194,3.1402,1592.4,1592.2,7.4048]
[1745137991402,2.92184,1592.3,1592.2,4.197]
[1745137993105,2.92184,1592.3,1592.2,6.425]
[1745137998010,3.2078,1592.4,1592.2,10.889]
[1745137998011,1.25611,1592.4,1592.2,10.889]
[1745137998311,1.25611,1592.4,1592.2,12.5492]
[1745137998608,1.25611,1592.4,1592.3,1.6602]
[1745137999712,2.85981,1592.4,1592.3,1.6602]
[1745138001510,1.25614,1592.3,1592.2,5.4358]
[1745138001812,2.85984,1592.3,1592.2,11.2424]
[1745138002111,2.85984,1592.3,1592.2,9.6338]
[1745138002904,2.85984,1592.3,1592.2,11.3437]
[1745138007504,1.25614,1592.3,1592.2,11.3437]